[Event "*** Titled Tuesday 3|2 Blitz (Late)"]
[Site "Chess.com"]
[Date "2016.11.01"]
[Round "6"]
[White "SwiftyMcBishop"]
[Black "popov_m"]
[Result "1/2-1/2"]
[WhiteElo "2106"]
[BlackElo "2286"]
[TimeControl "180+2"]
[EndTime "18:19:36 PDT"]
[Termination "Game drawn by agreement"]

1. e4 {[%clk 0:03:02]} 1... e6 {[%clk 0:02:53.4]} 2. d4 {[%clk 0:02:44.8]} 2...
d5 {[%clk 0:02:54.3]} 3. Nc3 {[%clk 0:02:45.3]} 3... Bb4 {[%clk 0:02:54.4]} 4.
e5 {[%clk 0:02:46.7]} 4... Ne7 {[%clk 0:02:55.3]} 5. Qg4 {[%clk 0:02:45.6]} 5...
c5 {[%clk 0:02:44.7]} 6. a3 {[%clk 0:02:45.6]} 6... Bxc3+ {[%clk 0:02:43.3]} 7.
bxc3 {[%clk 0:02:45.5]} 7... Qc7 {[%clk 0:02:44.3]} 8. Qxg7 {[%clk 0:02:46.2]}
8... Rg8 {[%clk 0:02:44.5]} 9. Qxh7 {[%clk 0:02:47.5]} 9... cxd4 {[%clk
0:02:45.7]} 10. Ne2 {[%clk 0:02:47.1]} 10... Nbc6 {[%clk 0:02:41.1]} 11. f4
{[%clk 0:02:46.7]} 11... dxc3 {[%clk 0:02:40.5]} 12. Qd3 {[%clk 0:02:47.5]}
12... d4 {[%clk 0:02:38.5]} 13. Nxd4 {[%clk 0:02:48.3]} 13... Nxd4 {[%clk
0:02:32]} 14. Qxd4 {[%clk 0:02:50.2]} 14... Bd7 {[%clk 0:02:29]} 15. Be3 {[%clk
0:02:50.7]} 15... Nf5 {[%clk 0:02:17.8]} 16. Qc5 {[%clk 0:02:50.8]} 16... Bc6
{[%clk 0:02:15.7]} 17. Rg1 {[%clk 0:02:46.9]} 17... b6 {[%clk 0:01:25]} 18. Qxc3
{[%clk 0:02:44.2]} 18... O-O-O {[%clk 0:01:14.5]} 19. g3 {[%clk 0:02:41.3]}
19... Kb8 {[%clk 0:01:07.2]} 20. Kf2 {[%clk 0:02:18.9]} 20... Qb7 {[%clk
0:01:02.4]} 21. Bd3 {[%clk 0:01:43.1]} 21... Nxe3 {[%clk 0:00:29.7]} 22. Kxe3
{[%clk 0:01:43.7]} 22... Bg2 {[%clk 0:00:31.2]} 23. Be2 {[%clk 0:01:38.8]} 23...
Rc8 {[%clk 0:00:29.2]} 24. Qb4 {[%clk 0:00:28.6]} 24... Rxc2 {[%clk 0:00:23.4]}
25. Rac1 {[%clk 0:00:08.4]} 25... Rxe2+ {[%clk 0:00:15.5]} 26. Kxe2 {[%clk
0:00:09.1]} 26... Qf3+ {[%clk 0:00:17.1]} 27. Kd2 {[%clk 0:00:09.9]} 27... Qf2+
{[%clk 0:00:18.4]} 28. Kc3 {[%clk 0:00:09.3]} 28... Rc8+ {[%clk 0:00:19.3]} 29.
Kb3 {[%clk 0:00:10.1]} 29... Bd5+ {[%clk 0:00:18.7]} 30. Ka4 {[%clk 0:00:08.5]}
30... Bc6+ {[%clk 0:00:15.3]} 31. Kb3 {[%clk 0:00:09.3]} 31... Bd5+ {[%clk
0:00:11.3]} 32. Ka4 {[%clk 0:00:10.3]} 32... Bc6+ {[%clk 0:00:10.7]} 1/2-1/2

[Event "*** Titled Tuesday 3|2 Blitz (Late)"]
[Site "Chess.com"]
[Date "2016.11.01"]
[Round "6"]
[White "theprosecution1"]
[Black "psv98"]
[Result "1/2-1/2"]
[WhiteElo "2509"]
[BlackElo "2616"]
[TimeControl "180+2"]
[EndTime "18:20:18 PDT"]
[Termination "Game drawn by repetition"]

1. e4 {[%clk 0:03:02]} 1... e5 {[%clk 0:03:00.2]} 2. Nf3 {[%clk 0:03:02.2]} 2...
Nc6 {[%clk 0:03:01.7]} 3. Bb5 {[%clk 0:03:03.8]} 3... a6 {[%clk 0:03:01.4]} 4.
Ba4 {[%clk 0:03:03]} 4... Nf6 {[%clk 0:03:02.2]} 5. O-O {[%clk 0:03:04.6]} 5...
d6 {[%clk 0:02:59.3]} 6. d4 {[%clk 0:02:28.9]} 6... b5 {[%clk 0:02:59.5]} 7. Bb3
{[%clk 0:02:29.6]} 7... Nxd4 {[%clk 0:03:00.1]} 8. Nxd4 {[%clk 0:02:30.7]} 8...
exd4 {[%clk 0:03:02]} 9. c3 {[%clk 0:02:32.3]} 9... d3 {[%clk 0:03:00.7]} 10.
Qxd3 {[%clk 0:02:30.9]} 10... Be7 {[%clk 0:03:01.7]} 11. a4 {[%clk 0:02:29.9]}
11... Bb7 {[%clk 0:03:00.6]} 12. Nd2 {[%clk 0:02:29.1]} 12... O-O {[%clk
0:02:57.7]} 13. Bc2 {[%clk 0:02:30.1]} 13... c5 {[%clk 0:02:51.1]} 14. b3 {[%clk
0:02:27.9]} 14... d5 {[%clk 0:02:42.4]} 15. e5 {[%clk 0:02:26.5]} 15... Ne4
{[%clk 0:02:43.3]} 16. Nxe4 {[%clk 0:02:28.1]} 16... dxe4 {[%clk 0:02:44.6]} 17.
Qg3 {[%clk 0:02:30]} 17... Kh8 {[%clk 0:02:09.7]} 18. Re1 {[%clk 0:02:24.6]}
18... f5 {[%clk 0:02:03.5]} 19. exf6 {[%clk 0:02:25.9]} 19... Bxf6 {[%clk
0:02:04.8]} 20. Bf4 {[%clk 0:02:27.5]} 20... Bh4 {[%clk 0:01:45.1]} 21. Qe3
{[%clk 0:02:24]} 21... Qf6 {[%clk 0:01:27.4]} 22. g3 {[%clk 0:02:16.7]} 22... g5
{[%clk 0:01:25.8]} 23. Bc7 {[%clk 0:02:17.9]} 23... Rf7 {[%clk 0:00:59.6]} 24.
Ba5 {[%clk 0:02:17.6]} 24... Raf8 {[%clk 0:00:35.2]} 25. Qxc5 {[%clk 0:02:10.3]}
25... Qg7 {[%clk 0:00:04.8]} 26. Bxe4 {[%clk 0:01:54.5]} 26... Bxe4 {[%clk
0:00:04.3]} 27. Rxe4 {[%clk 0:01:56.4]} 27... Rxf2 {[%clk 0:00:04.8]} 28. Qxf2
{[%clk 0:01:57.9]} 28... Rxf2 {[%clk 0:00:05]} 29. Kxf2 {[%clk 0:01:59.8]} 29...
Qf7+ {[%clk 0:00:05.3]} 30. Kg2 {[%clk 0:01:52.6]} 30... g4 {[%clk 0:00:04.3]}
31. Rxg4 {[%clk 0:01:45.1]} 31... Bf6 {[%clk 0:00:05.1]} 32. Rf1 {[%clk
0:01:32.4]} 32... Qd5+ {[%clk 0:00:06.1]} 33. Rf3 {[%clk 0:01:28.3]} 33... bxa4
{[%clk 0:00:05.1]} 34. bxa4 {[%clk 0:01:29.7]} 34... h5 {[%clk 0:00:03.1]} 35.
Rf4 {[%clk 0:01:25.8]} 35... Qd2+ {[%clk 0:00:03.3]} 36. Rf2 {[%clk 0:01:26.5]}
36... Qd5+ {[%clk 0:00:04.9]} 37. R4f3 {[%clk 0:01:20.9]} 37... Bg7 {[%clk
0:00:05]} 38. Bb6 {[%clk 0:01:10.2]} 38... a5 {[%clk 0:00:04.5]} 39. Bd4 {[%clk
0:01:01.9]} 39... Bxd4 {[%clk 0:00:05.8]} 40. cxd4 {[%clk 0:01:03.8]} 40... Qxd4
{[%clk 0:00:07.2]} 41. Rf8+ {[%clk 0:01:04.8]} 41... Kg7 {[%clk 0:00:07.6]} 42.
R8f5 {[%clk 0:00:58.5]} 42... Qe4+ {[%clk 0:00:07.7]} 43. Kg1 {[%clk 0:00:57.4]}
43... Qe1+ {[%clk 0:00:08.5]} 44. Kg2 {[%clk 0:00:58.3]} 44... Qe4+ {[%clk
0:00:09.5]} 45. Kf1 {[%clk 0:00:57.5]} 45... Qh1+ {[%clk 0:00:09.4]} 46. Ke2
{[%clk 0:00:58.2]} 46... Qe4+ {[%clk 0:00:11.3]} 47. Kd2 {[%clk 0:00:59.1]}
47... Qd4+ {[%clk 0:00:12.7]} 48. Ke2 {[%clk 0:00:59.6]} 48... Qe4+ {[%clk
0:00:14]} 49. Kd2 {[%clk 0:01:00.4]} 49... Qd4+ {[%clk 0:00:15.2]} 50. Ke1
{[%clk 0:01:02.1]} 50... Qe4+ {[%clk 0:00:15.3]} 51. Kf1 {[%clk 0:01:03]} 51...
Qh1+ {[%clk 0:00:16]} 52. Ke2 {[%clk 0:01:04]} 52... Qe4+ {[%clk 0:00:17.9]} 53.
Kd2 {[%clk 0:01:05.6]} 53... Qd4+ {[%clk 0:00:18.4]} 54. Ke2 {[%clk 0:00:59.1]}
54... Qe4+ {[%clk 0:00:19.6]} 55. Kf1 {[%clk 0:01:00.2]} 55... Qh1+ {[%clk
0:00:20.5]} 56. Ke2 {[%clk 0:01:01.6]} 56... Qe4+ {[%clk 0:00:22.4]} 1/2-1/2

[Event "*** Titled Tuesday 3|2 Blitz (Late)"]
[Site "Chess.com"]
[Date "2016.11.01"]
[Round "6"]
[White "MFBerna"]
[Black "stalyansky"]
[Result "1-0"]
[WhiteElo "2185"]
[BlackElo "2194"]
[TimeControl "180+2"]
[EndTime "18:20:23 PDT"]
[Termination "MFBerna won on time"]

1. e4 {[%clk 0:02:53.1]} 1... e5 {[%clk 0:02:57.8]} 2. Nf3 {[%clk 0:02:54.5]}
2... Nc6 {[%clk 0:02:57.2]} 3. Bb5 {[%clk 0:02:55.9]} 3... a6 {[%clk 0:02:57.6]}
4. Ba4 {[%clk 0:02:56.8]} 4... d6 {[%clk 0:02:55.8]} 5. O-O {[%clk 0:02:57.3]}
5... Bd7 {[%clk 0:02:56.2]} 6. d4 {[%clk 0:02:51.5]} 6... exd4 {[%clk
0:02:47.4]} 7. Nxd4 {[%clk 0:02:50.8]} 7... Nf6 {[%clk 0:02:05.4]} 8. Nxc6
{[%clk 0:02:47.3]} 8... Bxc6 {[%clk 0:02:05.2]} 9. Bxc6+ {[%clk 0:02:47.8]} 9...
bxc6 {[%clk 0:02:06.5]} 10. Nc3 {[%clk 0:02:42.9]} 10... Be7 {[%clk 0:01:57.6]}
11. Qf3 {[%clk 0:02:31.1]} 11... O-O {[%clk 0:01:41.4]} 12. e5 {[%clk
0:02:30.8]} 12... dxe5 {[%clk 0:01:33]} 13. Qxc6 {[%clk 0:02:31.7]} 13... Qd6
{[%clk 0:01:28.7]} 14. Qc4 {[%clk 0:02:29.5]} 14... Rab8 {[%clk 0:01:16.6]} 15.
b3 {[%clk 0:02:21.3]} 15... Qd4 {[%clk 0:01:09.6]} 16. Qxd4 {[%clk 0:02:14.9]}
16... exd4 {[%clk 0:01:10.3]} 17. Na4 {[%clk 0:02:09.9]} 17... Rbd8 {[%clk
0:01:01.7]} 18. Re1 {[%clk 0:02:02.9]} 18... Bb4 {[%clk 0:00:58.9]} 19. Rd1
{[%clk 0:02:01.9]} 19... Ne4 {[%clk 0:00:51.3]} 20. Bf4 {[%clk 0:02:00.3]} 20...
c6 {[%clk 0:00:42.3]} 21. Rd3 {[%clk 0:01:53.2]} 21... Rfe8 {[%clk 0:00:33.9]}
22. Rad1 {[%clk 0:01:45.6]} 22... Nf6 {[%clk 0:00:29.5]} 23. Bg5 {[%clk
0:01:37]} 23... Re2 {[%clk 0:00:28.2]} 24. c3 {[%clk 0:01:30.9]} 24... Rde8
{[%clk 0:00:23.6]} 25. Kf1 {[%clk 0:01:02]} 25... dxc3 {[%clk 0:00:21.6]} 26.
Nxc3 {[%clk 0:00:59.1]} 26... Bxc3 {[%clk 0:00:20.1]} 27. Rxc3 {[%clk 0:01:01]}
27... Ne4 {[%clk 0:00:19.4]} 28. Re3 {[%clk 0:00:55.3]} 28... Rxf2+ {[%clk
0:00:11.8]} 29. Ke1 {[%clk 0:00:34.4]} 29... Rf5 {[%clk 0:00:10.4]} 30. Rd8
{[%clk 0:00:25.7]} 30... Rxd8 {[%clk 0:00:09.6]} 31. Bxd8 {[%clk 0:00:27.6]}
31... Nd6 {[%clk 0:00:06.7]} 32. Bc7 {[%clk 0:00:22.7]} 32... Rd5 {[%clk
0:00:03.5]} 33. Bxd6 {[%clk 0:00:22.6]} 33... h5 {[%clk 0:00:04.8]} 34. Bb4
{[%clk 0:00:18.8]} 34... Rb5 {[%clk 0:00:05.7]} 35. Bd2 {[%clk 0:00:18]} 35...
a5 {[%clk 0:00:06.9]} 36. Rc3 {[%clk 0:00:17.8]} 36... c5 {[%clk 0:00:07.3]} 37.
Be3 {[%clk 0:00:18.6]} 37... a4 {[%clk 0:00:07.8]} 38. bxa4 {[%clk 0:00:17.4]}
38... Rb4 {[%clk 0:00:08.6]} 39. Ra3 {[%clk 0:00:18]} 39... c4 {[%clk
0:00:09.2]} 40. a5 {[%clk 0:00:18.8]} 40... Rb8 {[%clk 0:00:07]} 41. a6 {[%clk
0:00:19.9]} 41... Ra8 {[%clk 0:00:08]} 42. a7 {[%clk 0:00:21.2]} 42... c3 {[%clk
0:00:08.7]} 43. Rb3 {[%clk 0:00:21.6]} 43... c2 {[%clk 0:00:08.5]} 44. Kd2
{[%clk 0:00:21.8]} 44... Rc8 {[%clk 0:00:08.4]} 45. Kc1 {[%clk 0:00:21.9]} 1-0

[Event "*** Titled Tuesday 3|2 Blitz (Late)"]
[Site "Chess.com"]
[Date "2016.11.01"]
[Round "6"]
[White "pedromartinez91"]
[Black "jcgs1030"]
[Result "0-1"]
[WhiteElo "2295"]
[BlackElo "2272"]
[TimeControl "180+2"]
[EndTime "18:20:44 PDT"]
[Termination "jcgs1030 won by resignation"]

1. d4 {[%clk 0:03:01.9]} 1... Nf6 {[%clk 0:02:58.4]} 2. Nf3 {[%clk 0:02:59.5]}
2... g6 {[%clk 0:02:57.8]} 3. g3 {[%clk 0:03:00]} 3... Bg7 {[%clk 0:02:58.4]} 4.
Bg2 {[%clk 0:03:01.4]} 4... O-O {[%clk 0:02:58.4]} 5. O-O {[%clk 0:03:02.9]}
5... c5 {[%clk 0:02:59.2]} 6. c3 {[%clk 0:02:59.8]} 6... d6 {[%clk 0:02:58.7]}
7. dxc5 {[%clk 0:02:58.2]} 7... dxc5 {[%clk 0:02:58.9]} 8. Qxd8 {[%clk
0:02:59.7]} 8... Rxd8 {[%clk 0:03:00.3]} 9. Be3 {[%clk 0:03:01.1]} 9... b6
{[%clk 0:02:53.2]} 10. Na3 {[%clk 0:02:25.3]} 10... Bb7 {[%clk 0:02:48.7]} 11.
Rfd1 {[%clk 0:02:20.9]} 11... Na6 {[%clk 0:02:41.3]} 12. Nb5 {[%clk 0:02:10.5]}
12... Bd5 {[%clk 0:02:19.3]} 13. Ne5 {[%clk 0:01:59.7]} 13... Bxg2 {[%clk
0:02:14]} 14. Kxg2 {[%clk 0:01:59.9]} 14... Nd5 {[%clk 0:02:14.3]} 15. Nc6
{[%clk 0:01:56.3]} 15... Nxe3+ {[%clk 0:02:09.9]} 16. fxe3 {[%clk 0:01:56.8]}
16... Rxd1 {[%clk 0:01:51.6]} 17. Rxd1 {[%clk 0:01:57]} 17... Bf6 {[%clk
0:01:53.1]} 18. Rd7 {[%clk 0:01:51.8]} 18... Kf8 {[%clk 0:01:48.2]} 19. Rxa7
{[%clk 0:01:45.1]} 19... Rxa7 {[%clk 0:01:45.6]} 20. Ncxa7 {[%clk 0:01:46.6]}
20... Nb8 {[%clk 0:01:39.6]} 21. Nc8 {[%clk 0:01:32.5]} 21... Nd7 {[%clk
0:01:39]} 22. Nc7 {[%clk 0:01:32.6]} 22... e6 {[%clk 0:01:32.3]} 23. Na8 {[%clk
0:01:23.2]} 23... Bd8 {[%clk 0:01:24.7]} 24. a4 {[%clk 0:01:20.9]} 24... f5
{[%clk 0:00:48.4]} 25. b4 {[%clk 0:01:14.5]} 25... cxb4 {[%clk 0:00:41.9]} 26.
cxb4 {[%clk 0:01:15.4]} 26... e5 {[%clk 0:00:28.3]} 27. e4 {[%clk 0:01:05.5]}
27... fxe4 {[%clk 0:00:28.4]} 28. Kf2 {[%clk 0:01:06.4]} 28... Be7 {[%clk
0:00:18.5]} 29. Nxe7 {[%clk 0:00:48.4]} 29... Kxe7 {[%clk 0:00:20.4]} 30. Ke3
{[%clk 0:00:49.6]} 30... Kd6 {[%clk 0:00:20]} 31. Kxe4 {[%clk 0:00:50.3]} 31...
Kc6 {[%clk 0:00:21.5]} 32. a5 {[%clk 0:00:51.5]} 32... bxa5 {[%clk 0:00:21.4]}
33. bxa5 {[%clk 0:00:52.4]} 33... Kb7 {[%clk 0:00:19.9]} 34. Nb6 {[%clk
0:00:53.2]} 34... Nf6+ {[%clk 0:00:19.4]} 35. Kxe5 {[%clk 0:00:51.1]} 35... Ng4+
{[%clk 0:00:20.9]} 36. Kd6 {[%clk 0:00:51]} 36... Nxh2 {[%clk 0:00:21.9]} 37. e4
{[%clk 0:00:52.2]} 37... Nf1 {[%clk 0:00:22.4]} 38. g4 {[%clk 0:00:49.7]} 38...
h5 {[%clk 0:00:23.9]} 39. g5 {[%clk 0:00:49.4]} 39... Ng3 {[%clk 0:00:21.5]} 40.
e5 {[%clk 0:00:49.9]} 40... h4 {[%clk 0:00:22.7]} 41. e6 {[%clk 0:00:25]} 41...
h3 {[%clk 0:00:23.1]} 42. Nc4 {[%clk 0:00:18.6]} 42... h2 {[%clk 0:00:20.3]} 43.
Ne3 {[%clk 0:00:12.2]} 43... h1=Q {[%clk 0:00:20]} 44. e7 {[%clk 0:00:14.1]}
44... Qe4 {[%clk 0:00:18.9]} 45. Nd5 {[%clk 0:00:13]} 45... Nf5+ {[%clk
0:00:18.7]} 46. Kc5 {[%clk 0:00:13.8]} 46... Qe5 {[%clk 0:00:18.8]} 47. a6+
{[%clk 0:00:11.4]} 47... Kxa6 {[%clk 0:00:18.3]} 48. Kc4 {[%clk 0:00:12.2]}
48... Qd4+ {[%clk 0:00:18.6]} 49. Kb3 {[%clk 0:00:10.5]} 49... Qxd5+ {[%clk
0:00:20.5]} 0-1

[Event "*** Titled Tuesday 3|2 Blitz (Late)"]
[Site "Chess.com"]
[Date "2016.11.01"]
[Round "6"]
[White "hardingstoptry"]
[Black "jk13"]
[Result "1/2-1/2"]
[WhiteElo "2583"]
[BlackElo "2513"]
[TimeControl "180+2"]
[EndTime "18:20:58 PDT"]
[Termination "Game drawn by agreement"]

1. Nf3 {[%clk 0:03:02]} 1... Nf6 {[%clk 0:03:00.7]} 2. g3 {[%clk 0:03:03.9]}
2... e6 {[%clk 0:03:02.6]} 3. Bg2 {[%clk 0:03:05.8]} 3... d5 {[%clk 0:03:03.6]}
4. O-O {[%clk 0:03:02.7]} 4... b5 {[%clk 0:03:04.5]} 5. d3 {[%clk 0:03:04.1]}
5... c5 {[%clk 0:03:04.4]} 6. Nbd2 {[%clk 0:03:06]} 6... Nc6 {[%clk 0:03:05.6]}
7. Re1 {[%clk 0:03:06.4]} 7... Be7 {[%clk 0:03:06.9]} 8. e4 {[%clk 0:03:06.1]}
8... O-O {[%clk 0:03:08.4]} 9. c3 {[%clk 0:03:05]} 9... Bb7 {[%clk 0:03:07.4]}
10. Qe2 {[%clk 0:03:02.6]} 10... a5 {[%clk 0:03:07.8]} 11. a4 {[%clk 0:03:00.9]}
11... b4 {[%clk 0:03:08.5]} 12. exd5 {[%clk 0:03:01.8]} 12... exd5 {[%clk
0:03:02.5]} 13. Nb3 {[%clk 0:02:57.3]} 13... Re8 {[%clk 0:03:01.3]} 14. Bg5
{[%clk 0:02:56.3]} 14... Bf8 {[%clk 0:02:52.4]} 15. Qxe8 {[%clk 0:02:54.2]}
15... Qxe8 {[%clk 0:02:50.9]} 16. Rxe8 {[%clk 0:02:55.6]} 16... Rxe8 {[%clk
0:02:35.7]} 17. Kf1 {[%clk 0:02:46.2]} 17... Ba6 {[%clk 0:02:29.4]} 18. Ne1
{[%clk 0:02:43.1]} 18... c4 {[%clk 0:02:02]} 19. Nd2 {[%clk 0:02:38.5]} 19...
cxd3 {[%clk 0:01:37.4]} 20. Bxf6 {[%clk 0:02:33.5]} 20... gxf6 {[%clk
0:01:39.3]} 21. Bxd5 {[%clk 0:02:33.2]} 21... Ne5 {[%clk 0:01:37]} 22. Kg2
{[%clk 0:02:16.7]} 22... bxc3 {[%clk 0:01:26.6]} 23. bxc3 {[%clk 0:02:14.7]}
23... Rc8 {[%clk 0:01:28]} 24. Nef3 {[%clk 0:02:11.1]} 24... Rxc3 {[%clk
0:01:26]} 25. Ne4 {[%clk 0:02:07.3]} 25... Nxf3 {[%clk 0:00:43.5]} 26. Kxf3
{[%clk 0:01:52.9]} 26... Rc2 {[%clk 0:00:40.7]} 27. Rd1 {[%clk 0:01:33.7]} 27...
Bb4 {[%clk 0:00:40.2]} 28. Bb3 {[%clk 0:01:30.8]} 28... Rb2 {[%clk 0:00:39.4]}
29. Nxf6+ {[%clk 0:01:26.8]} 29... Kg7 {[%clk 0:00:38.6]} 30. Ne8+ {[%clk
0:01:27.8]} 30... Kf8 {[%clk 0:00:38.8]} 31. Nc7 {[%clk 0:01:26.7]} 31... Bb7+
{[%clk 0:00:29.5]} 32. Bd5 {[%clk 0:01:21.2]} 32... Bc8 {[%clk 0:00:19.7]} 33.
g4 {[%clk 0:01:19.3]} 33... Bc5 {[%clk 0:00:20.7]} 34. Rxd3 {[%clk 0:01:15.1]}
34... Rxf2+ {[%clk 0:00:21.1]} 35. Kg3 {[%clk 0:01:14.8]} 35... Rc2 {[%clk
0:00:21.9]} 36. Bb3 {[%clk 0:01:06.9]} 36... Bf2+ {[%clk 0:00:21]} 37. Kf3
{[%clk 0:01:05.2]} 37... Rxc7 {[%clk 0:00:19.7]} 38. Kxf2 {[%clk 0:01:06.2]}
38... Bxg4 {[%clk 0:00:21.1]} 39. Rd8+ {[%clk 0:01:04]} 39... Kg7 {[%clk
0:00:21.6]} 40. Rb8 {[%clk 0:00:56.4]} 40... Rc3 {[%clk 0:00:20]} 41. Rb7 {[%clk
0:00:55.1]} 41... Rf3+ {[%clk 0:00:20.7]} 42. Kg2 {[%clk 0:00:54.2]} 42... Rf5
{[%clk 0:00:20.1]} 43. Ra7 {[%clk 0:00:52.3]} 43... Bf3+ {[%clk 0:00:20.4]} 44.
Kg3 {[%clk 0:00:52]} 44... Be4 {[%clk 0:00:21.8]} 45. Be6 {[%clk 0:00:47.2]}
45... Rf6 {[%clk 0:00:22]} 46. Bg4 {[%clk 0:00:41.3]} 46... Bf5 {[%clk
0:00:17.2]} 47. Rxa5 {[%clk 0:00:40.2]} 47... Bxg4 {[%clk 0:00:18.4]} 48. Rg5+
{[%clk 0:00:40.1]} 48... Kf8 {[%clk 0:00:17.1]} 49. Kxg4 {[%clk 0:00:41.2]}
49... Rf2 {[%clk 0:00:18]} 50. h4 {[%clk 0:00:37.2]} 50... Ra2 {[%clk
0:00:19.3]} 51. Ra5 {[%clk 0:00:34.5]} 51... Kg7 {[%clk 0:00:19.5]} 52. Kf5
{[%clk 0:00:33.3]} 52... h6 {[%clk 0:00:18.8]} 53. Ra8 {[%clk 0:00:32.9]} 53...
Rh2 {[%clk 0:00:19.2]} 54. Kg4 {[%clk 0:00:32]} 54... Rg2+ {[%clk 0:00:20.3]}
55. Kf4 {[%clk 0:00:31.3]} 55... Ra2 {[%clk 0:00:22.2]} 56. Ra7 {[%clk
0:00:28.9]} 56... Rh2 {[%clk 0:00:22.5]} 57. Kg3 {[%clk 0:00:26.8]} 57... Ra2
{[%clk 0:00:24.1]} 58. Kf4 {[%clk 0:00:26.7]} 58... Rh2 {[%clk 0:00:24.8]} 59.
Kg3 {[%clk 0:00:26.4]} 1/2-1/2

[Event "*** Titled Tuesday 3|2 Blitz (Late)"]
[Site "Chess.com"]
[Date "2016.11.01"]
[Round "6"]
[White "brightthunder"]
[Black "KyronGriffith"]
[Result "1/2-1/2"]
[WhiteElo "2540"]
[BlackElo "2319"]
[TimeControl "180+2"]
[EndTime "18:21:06 PDT"]
[Termination "Game drawn by agreement"]

1. e4 {[%clk 0:03:01.9]} 1... c5 {[%clk 0:02:59.9]} 2. Nf3 {[%clk 0:03:02.7]}
2... d6 {[%clk 0:03:01.3]} 3. d4 {[%clk 0:03:04.1]} 3... cxd4 {[%clk 0:03:03.2]}
4. Nxd4 {[%clk 0:03:06]} 4... Nf6 {[%clk 0:03:04.8]} 5. Nc3 {[%clk 0:03:07.4]}
5... a6 {[%clk 0:03:06.4]} 6. f3 {[%clk 0:03:08.8]} 6... e5 {[%clk 0:03:07.5]}
7. Nb3 {[%clk 0:03:10.1]} 7... Be6 {[%clk 0:03:09.1]} 8. Be3 {[%clk 0:03:12]}
8... Be7 {[%clk 0:03:10.5]} 9. Qd2 {[%clk 0:03:12.8]} 9... O-O {[%clk
0:03:10.4]} 10. O-O-O {[%clk 0:03:14.3]} 10... Nbd7 {[%clk 0:03:11.9]} 11. g4
{[%clk 0:03:15.3]} 11... b5 {[%clk 0:03:13.6]} 12. g5 {[%clk 0:03:16.7]} 12...
b4 {[%clk 0:03:15.2]} 13. gxf6 {[%clk 0:03:18.2]} 13... bxc3 {[%clk 0:03:13.7]}
14. Qxc3 {[%clk 0:03:20.1]} 14... Nxf6 {[%clk 0:03:10.3]} 15. Na5 {[%clk
0:03:21.6]} 15... Qd7 {[%clk 0:02:57.4]} 16. Nc6 {[%clk 0:03:20.8]} 16... Rfc8
{[%clk 0:02:57.5]} 17. Nxe7+ {[%clk 0:03:21.3]} 17... Qxe7 {[%clk 0:02:59.4]}
18. Qa5 {[%clk 0:03:22.8]} 18... Nh5 {[%clk 0:02:08.9]} 19. Rd2 {[%clk
0:02:50.5]} 19... Nf4 {[%clk 0:02:05.4]} 20. Rg1 {[%clk 0:02:24]} 20... g6
{[%clk 0:02:03.5]} 21. Bxf4 {[%clk 0:02:15.3]} 21... exf4 {[%clk 0:02:03.1]} 22.
Qg5 {[%clk 0:02:17.2]} 22... Qxg5 {[%clk 0:02:00.4]} 23. Rxg5 {[%clk 0:02:19.1]}
23... Bxa2 {[%clk 0:01:58.4]} 24. Rxd6 {[%clk 0:02:10.8]} 24... Bb3 {[%clk
0:01:51.6]} 25. Bd3 {[%clk 0:02:04.9]} 25... a5 {[%clk 0:01:49.1]} 26. Rf6
{[%clk 0:01:42.1]} 26... Bc4 {[%clk 0:01:31.8]} 27. Bxc4 {[%clk 0:01:31.3]}
27... Rxc4 {[%clk 0:01:33.7]} 28. Rxf4 {[%clk 0:01:32.4]} 28... a4 {[%clk
0:01:34.5]} 29. Rf6 {[%clk 0:01:15.5]} 29... a3 {[%clk 0:01:31.9]} 30. bxa3
{[%clk 0:01:14.7]} 30... Rxa3 {[%clk 0:01:33.8]} 31. Rd5 {[%clk 0:01:08]} 31...
Ra2 {[%clk 0:01:17.2]} 32. Rd2 {[%clk 0:01:04.9]} 32... Kg7 {[%clk 0:01:17.3]}
33. Rb6 {[%clk 0:01:01.7]} 33... Ra1+ {[%clk 0:01:06.3]} 34. Kb2 {[%clk
0:01:02.1]} 34... Rf1 {[%clk 0:01:07.1]} 35. Rb3 {[%clk 0:01:01.3]} 35... g5
{[%clk 0:01:02.7]} 36. Rbd3 {[%clk 0:00:52.3]} 36... h5 {[%clk 0:00:47.5]} 37.
Kb3 {[%clk 0:00:50]} 37... Rc6 {[%clk 0:00:44.8]} 38. Kb2 {[%clk 0:00:36.8]}
38... f6 {[%clk 0:00:40.1]} 39. Rc3 {[%clk 0:00:18]} 39... Rb6+ {[%clk
0:00:40.5]} 40. Rb3 {[%clk 0:00:19.2]} 40... Rc6 {[%clk 0:00:41.8]} 41. Rg2
{[%clk 0:00:13.2]} 41... h4 {[%clk 0:00:41.2]} 42. e5 {[%clk 0:00:13]} 42... Kg6
{[%clk 0:00:28.2]} 43. Rb5 {[%clk 0:00:09.4]} 43... Rxf3 {[%clk 0:00:21.6]} 44.
exf6 {[%clk 0:00:10.2]} 44... Kxf6 {[%clk 0:00:13.5]} 45. Rgxg5 {[%clk
0:00:08.2]} 45... Rc8 {[%clk 0:00:13.9]} 46. Rgd5 {[%clk 0:00:07.6]} 46... Ke6
{[%clk 0:00:12.9]} 47. Rd4 {[%clk 0:00:07.5]} 47... h3 {[%clk 0:00:13.9]} 48.
Rh4 {[%clk 0:00:07.9]} 48... Rf2 {[%clk 0:00:14.1]} 49. Rxh3 {[%clk 0:00:09]}
49... Rcxc2+ {[%clk 0:00:14.2]} 50. Kb3 {[%clk 0:00:10.6]} 50... Rb2+ {[%clk
0:00:15.4]} 51. Ka4 {[%clk 0:00:10.4]} 51... Ra2+ {[%clk 0:00:13.7]} 52. Kb4
{[%clk 0:00:11.8]} 52... Rfb2+ {[%clk 0:00:14]} 53. Kc5 {[%clk 0:00:12.6]} 53...
Rxh2 {[%clk 0:00:12.9]} 54. Rxh2 {[%clk 0:00:12.9]} 54... Rxh2 {[%clk
0:00:14.8]} 55. Kb6 {[%clk 0:00:14.3]} 1/2-1/2